bitfinex/quotes_BTCUSD_20241010
["timestamp","ask_amount","ask_price","bid_price","bid_amount"]
[1728595238422,0.00559057,59783.0,59782.0,0.33099445]
[1728595239122,0.00559057,59783.0,59782.0,0.33899445]
[1728595239337,0.00559057,59783.0,59782.0,0.58489445]
[1728595239581,0.00559057,59783.0,59782.0,0.59289445]
[1728595239800,0.00559057,59783.0,59782.0,2.08489445]
[1728595240019,0.00559057,59783.0,59782.0,2.11561226]
[1728595240235,5.7e-07,59783.0,59782.0,2.24270828]
[1728595240447,5.7e-07,59783.0,59782.0,2.45745077]
[1728595240667,0.1805,59811.0,59790.0,0.162526]
[1728595240879,1e-06,59791.0,59790.0,0.77582734]
[1728595241090,0.00986789,59791.0,59790.0,0.77582734]
[1728595241305,1e-06,59796.0,59795.0,0.262514]
[1728595241530,1e-06,59796.0,59795.0,0.77581534]
[1728595241752,0.34835433,59818.0,59797.0,0.287509]
[1728595241969,0.34835433,59818.0,59797.0,1.9568183]
[1728595242411,0.34835433,59818.0,59798.0,0.287506]
[1728595242412,0.00163,59808.0,59798.0,0.287506]
[1728595242631,0.00163,59808.0,59807.0,0.162484]
[1728595242843,0.00163,59808.0,59807.0,0.7853479]
[1728595243271,0.00163,59808.0,59807.0,0.73562355]
[1728595243477,0.00163,59808.0,59807.0,0.76044265]
[1728595243905,0.00163,59808.0,59807.0,0.82524265]
[1728595244120,0.00163,59808.0,59807.0,0.83724265]
[1728595244328,0.00163,59808.0,59807.0,0.81238613]
[1728595244542,0.00163,59808.0,59807.0,0.76278534]
[1728595244748,0.00163,59808.0,59807.0,0.86196468]
[1728595244952,0.00163,59808.0,59807.0,0.76278534]
[1728595245163,0.00163,59808.0,59807.0,0.78578534]
[1728595245384,0.00163,59808.0,59807.0,0.83534433]
[1728595245591,0.00163,59808.0,59807.0,0.84734433]
[1728595245829,0.00163,59808.0,59807.0,0.79778534]
[1728595246286,0.00163,59808.0,59807.0,0.84931614]
[1728595246713,0.00163,59808.0,59807.0,2.34931614]
[1728595246919,0.00163,59808.0,59807.0,2.34731614]
[1728595247196,0.00163,59808.0,59807.0,2.84731614]
[1728595247444,0.00163,59808.0,59807.0,2.77578534]
[1728595247702,0.00163,59808.0,59807.0,2.87812383]
[1728595248368,0.00163,59808.0,59807.0,2.78778534]
[1728595248579,0.00163,59808.0,59807.0,2.80178534]
[1728595248790,0.00163,59808.0,59807.0,2.78778534]
[1728595249197,0.00163,59808.0,59807.0,2.80178534]
[1728595250021,0.00163,59808.0,59807.0,2.80378534]
[1728595250236,0.00163,59808.0,59807.0,2.8512227]
[1728595250455,0.00163,59808.0,59807.0,2.80178534]
[1728595250663,0.00163,59808.0,59807.0,2.85122221]
[1728595251392,0.00163,59808.0,59807.0,2.85120758]
[1728595251810,0.00163,59808.0,59807.0,2.80378534]
[1728595252045,0.26655433,59818.0,59817.0,0.157458]
[1728595252258,0.26655433,59818.0,59817.0,0.45386332]
[1728595252491,0.0156112,59818.0,59817.0,0.45386332]
[1728595253129,0.0156112,59818.0,59817.0,0.47686332]
[1728595253772,0.0156112,59818.0,59817.0,0.48986332]
[1728595254381,0.0156112,59818.0,59817.0,0.50286332]
[1728595254592,0.0156112,59818.0,59817.0,1.00286332]
[1728595255480,0.0156112,59818.0,59817.0,0.97686332]
[1728595255902,0.0156112,59818.0,59817.0,1.00649022]
[1728595256583,0.0156112,59818.0,59817.0,0.8267673]
[1728595256801,0.0934112,59818.0,59817.0,0.8547673]
[1728595257235,0.0934112,59818.0,59817.0,0.8407673]
[1728595257476,0.0934112,59818.0,59817.0,0.8547673]
[1728595258988,0.0156112,59818.0,59817.0,0.8547673]
[1728595267720,0.0164262,59818.0,59817.0,0.8547673]
[1728595268783,0.0164262,59818.0,59817.0,0.8777673]
[1728595269000,0.0164262,59818.0,59817.0,1.00486332]
[1728595269412,0.0164262,59818.0,59817.0,1.10986332]
[1728595269620,0.0164262,59818.0,59817.0,1.09586332]
[1728595270038,0.0164262,59818.0,59817.0,1.10986332]
[1728595270305,0.0164262,59818.0,59817.0,1.09586332]
[1728595270518,0.0164262,59818.0,59817.0,1.08186332]
[1728595270721,0.0164262,59818.0,59817.0,1.09586332]
[1728595271354,0.0164262,59818.0,59817.0,1.10986332]
[1728595271562,0.0164262,59818.0,59817.0,1.09586332]
[1728595272182,0.0164262,59818.0,59817.0,2.59586332]
[1728595272608,0.0164262,59818.0,59817.0,2.60986332]
[1728595272830,0.0164262,59818.0,59817.0,2.59586332]
[1728595273033,0.0164262,59818.0,59817.0,2.60986332]
[1728595273688,0.0164262,59818.0,59817.0,2.59586332]
[1728595273822,0.0164262,59818.0,59817.0,2.65589453]
[1728595274027,0.0164262,59818.0,59817.0,2.7593716]
[1728595274259,0.0164262,59818.0,59817.0,2.64666332]
[1728595274464,0.25094313,59829.0,59817.0,2.64666332]
[1728595274465,0.25094313,59829.0,59818.0,0.285456]
[1728595274669,0.25094313,59829.0,59818.0,0.58152273]
[1728595274874,0.25094313,59829.0,59818.0,0.4547653]
[1728595275085,0.25094313,59829.0,59818.0,1.9547653]
[1728595275285,0.25094313,59829.0,59818.0,2.07821413]
[1728595275512,0.25094313,59829.0,59818.0,2.08021413]
[1728595275717,0.25094313,59829.0,59818.0,1.9707653]
[1728595275914,0.25094313,59829.0,59818.0,1.9687653]
[1728595276550,0.25094313,59829.0,59818.0,1.9847653]
[1728595276752,0.25094313,59829.0,59818.0,1.9827653]
[1728595277990,0.25094313,59829.0,59818.0,1.9847653]
[1728595278226,0.00163,59831.0,59830.0,0.157426]
[1728595278425,0.01728083,59831.0,59830.0,0.33007771]
[1728595278681,0.01728083,59831.0,59830.0,0.3267353]
[1728595279048,0.01728081,59831.0,59830.0,0.3267353]
[1728595279271,0.00163,59831.0,59830.0,0.4267353]
[1728595279473,0.00163,59831.0,59830.0,0.47616443]
[1728595279890,0.00163,59831.0,59830.0,0.500879]
[1728595280273,0.00163,59831.0,59830.0,0.4267353]
[1728595280521,0.00163,59831.0,59830.0,0.4507353]
[1728595280774,0.00163,59831.0,59830.0,0.9507353]
[1728595281001,0.00163,59831.0,59830.0,1.36037799]
[1728595281226,0.00163,59831.0,59830.0,1.23673132]
[1728595281485,0.00163,59831.0,59830.0,1.17863132]
[1728595281736,0.00163,59831.0,59830.0,1.15363132]
[1728595281957,0.00163,59831.0,59830.0,1.14163132]
[1728595282185,0.00163,59831.0,59830.0,1.16863132]
[1728595282420,0.00163,59831.0,59830.0,2.66863132]
[1728595282706,0.00163,59831.0,59830.0,2.65563132]
[1728595282898,0.00163,59831.0,59830.0,2.67163132]
[1728595283139,0.00163,59831.0,59830.0,2.81800732]
[1728595283379,0.00163,59831.0,59830.0,2.5981113]
[1728595283616,0.00163,59831.0,59830.0,2.6261113]
[1728595283817,0.00163,59831.0,59830.0,2.6171113]
[1728595284327,0.00163,59831.0,59830.0,2.4777353]
[1728595284578,0.00163,59831.0,59830.0,2.4827353]
[1728595285788,0.00163,59831.0,59830.0,2.4777353]
[1728595286027,0.00163,59831.0,59830.0,2.4827353]
[1728595286265,0.00163,59831.0,59830.0,2.70233969]
[1728595287202,0.00163,59831.0,59830.0,2.67933969]
[1728595287437,0.17023,59831.0,59830.0,1.08683132]
[1728595290328,0.17023,59831.0,59830.0,1.23570968]
[1728595291140,0.17023,59831.0,59830.0,1.08683132]
[1728595291557,0.17023,59831.0,59830.0,1.08183132]
[1728595291777,0.17023,59831.0,59830.0,1.08683132]
[1728595293857,0.17023,59831.0,59830.0,2.58683132]
[1728595295416,0.17023,59831.0,59830.0,2.71090268]
[1728595295625,0.17023,59831.0,59830.0,0.92719268]
[1728595295815,0.17023,59831.0,59830.0,0.90237496]
[1728595296197,0.17023,59831.0,59830.0,0.8387353]
[1728595296415,0.17023,59831.0,59830.0,0.8247353]
[1728595296794,0.17023,59831.0,59830.0,0.8387353]
[1728595297009,0.17023,59831.0,59830.0,0.8247353]
[1728595297218,0.17023,59831.0,59830.0,0.8267353]
[1728595297845,0.17023,59831.0,59830.0,0.8407353]
[1728595298270,0.17023,59831.0,59830.0,0.8267353]
[1728595298494,0.17023,59831.0,59830.0,0.8297353]
[1728595298930,0.17023,59831.0,59830.0,0.8277353]
[1728595299390,0.17023,59831.0,59830.0,0.8814423]
[1728595299572,0.17023,59831.0,59830.0,0.8784423]
[1728595301364,0.17023,59831.0,59830.0,0.8804423]
[1728595302361,0.17023,59831.0,59830.0,0.8834423]
[1728595302836,0.17023,59831.0,59830.0,0.8804423]
[1728595304301,0.17023,59831.0,59830.0,0.8814423]
[1728595308351,0.17023,59831.0,59830.0,0.8794423]
[1728595308602,0.17023,59831.0,59830.0,0.8814423]
[1728595311005,0.17023,59831.0,59830.0,0.8804423]
[1728595311525,0.17023,59831.0,59830.0,0.8834423]
[1728595312323,0.17023,59831.0,59830.0,0.8864423]
[1728595312559,0.17023,59831.0,59830.0,0.93611802]
[1728595314186,0.17023,59831.0,59830.0,0.93616152]
[1728595314437,0.17023,59831.0,59830.0,0.8864423]
[1728595314876,0.17023,59831.0,59830.0,0.96102114]
[1728595315518,0.17023,59831.0,59830.0,0.8864423]
[1728595315977,0.17023,59831.0,59830.0,0.96102504]
[1728595316450,0.17023,59831.0,59830.0,0.96101433]
[1728595316669,0.17023,59831.0,59830.0,0.96101287]
[1728595316852,0.17023,59831.0,59830.0,0.95801287]
[1728595317112,0.17023,59831.0,59830.0,0.96401287]
[1728595317514,0.17023,59831.0,59830.0,0.95801287]
[1728595317723,0.17023,59831.0,59830.0,0.98288075]
[1728595317944,0.17023,59831.0,59830.0,0.96100472]
[1728595318151,0.17023,59831.0,59830.0,0.8864423]
[1728595318398,0.17023,59831.0,59830.0,0.8924423]
[1728595318622,0.17023,59831.0,59830.0,0.99188075]
[1728595318743,0.17023,59831.0,59830.0,0.96700877]
[1728595319803,0.17023,59831.0,59830.0,0.99188075]
[1728595320226,0.00163,59831.0,59830.0,1.01674037]
[1728595320433,0.00163,59831.0,59830.0,0.8924423]
[1728595321279,0.00163,59831.0,59830.0,0.8864423]
[1728595321494,0.00163,59831.0,59830.0,0.8924423]
[1728595321712,0.00163,59831.0,59830.0,0.9044423]
[1728595322144,0.00163,59831.0,59830.0,0.8924423]
[1728595322350,0.00163,59831.0,59830.0,0.9054423]
[1728595322796,0.00163,59831.0,59830.0,0.8934423]
[1728595323460,0.00163,59831.0,59830.0,0.9064423]
[1728595323693,0.00163,59831.0,59830.0,1.0064423]
[1728595323928,0.00163,59831.0,59830.0,1.15559998]
[1728595324144,0.00163,59831.0,59830.0,1.0064423]
[1728595324358,0.00163,59831.0,59830.0,1.0164423]
[1728595324587,0.00163,59831.0,59830.0,1.13553832]
[1728595324795,0.00163,59831.0,59830.0,1.14953832]
[1728595325008,0.00163,59831.0,59830.0,1.16353832]
[1728595325216,0.00163,59831.0,59830.0,1.14953832]
[1728595325419,0.00163,59831.0,59830.0,1.1789165]
[1728595325835,0.00163,59831.0,59830.0,1.1649165]
[1728595326068,0.00163,59831.0,59830.0,1.1809165]
[1728595326332,0.00163,59831.0,59830.0,2.6669165]
[1728595326546,0.00163,59831.0,59830.0,2.6716015]
[1728595326761,0.00163,59831.0,59830.0,2.6856015]
[1728595327288,0.00163,59831.0,59830.0,2.6716015]
[1728595327500,0.00163,59831.0,59830.0,2.6856015]
[1728595327708,0.00163,59831.0,59830.0,2.6876015]
[1728595327928,0.00163,59831.0,59830.0,2.6736015]
[1728595328380,0.00163,59831.0,59830.0,2.6876015]
[1728595328576,0.00163,59831.0,59830.0,2.6856015]
[1728595328831,0.00163,59831.0,59830.0,2.6716015]
[1728595329023,0.00163,59831.0,59830.0,2.6856015]
[1728595329942,0.00163,59831.0,59830.0,2.55850548]
[1728595330195,0.00163,59831.0,59830.0,2.6856015]
[1728595331091,0.0002,59839.0,59836.0,0.285411]
[1728595331331,0.0002,59839.0,59836.0,0.58181632]
[1728595331998,0.0002,59839.0,59836.0,2.08381632]
[1728595332443,0.0002,59839.0,59836.0,2.08181632]
[1728595333315,0.0002,59839.0,59836.0,2.4547203]
[1728595333535,0.0002,59839.0,59836.0,2.58181632]
[1728595333536,0.1762,59839.0,59836.0,2.58181632]
[1728595334220,0.1762,59839.0,59836.0,2.60981632]
[1728595334651,0.1762,59839.0,59836.0,2.73060227]
[1728595334893,0.1762,59839.0,59836.0,2.75860227]
[1728595335109,0.1762,59839.0,59836.0,2.74460227]
[1728595335334,0.1762,59839.0,59836.0,2.74632603]
[1728595335554,0.1762,59839.0,59836.0,2.76032603]
[1728595335766,0.1762,59839.0,59836.0,2.74632603]
[1728595335985,0.1762,59839.0,59836.0,2.76032603]
[1728595336654,0.1762,59839.0,59836.0,2.77432603]
[1728595337474,0.1762,59839.0,59836.0,2.61154008]
[1728595337677,0.162015,59839.0,59838.0,0.01]
[1728595337876,0.162015,59839.0,59838.0,0.4317153]
[1728595338293,0.162015,59839.0,59838.0,0.4267153]
[1728595338493,0.162015,59839.0,59838.0,0.55067698]
[1728595338765,0.162015,59839.0,59838.0,0.52589034]
[1728595338943,0.162015,59839.0,59838.0,0.53989034]
[1728595339154,0.162015,59839.0,59838.0,0.52589034]
[1728595339349,0.162015,59839.0,59838.0,0.48930773]
[1728595339673,0.162015,59839.0,59838.0,0.38930773]
[1728595339846,0.162015,59839.0,59838.0,0.3377153]
[1728595340052,0.162015,59839.0,59838.0,0.38730978]
[1728595340258,0.162015,59839.0,59838.0,0.38930978]
[1728595340459,0.162015,59839.0,59838.0,0.40330978]
[1728595340870,0.162015,59839.0,59838.0,0.38930978]
[1728595341275,0.162015,59839.0,59838.0,0.3527153]
[1728595342065,0.162015,59839.0,59838.0,0.40230978]
[1728595342282,0.162015,59839.0,59838.0,0.3527153]
[1728595342587,0.162015,59839.0,59838.0,0.40230978]
[1728595343379,0.162015,59839.0,59838.0,0.3527153]
[1728595343587,0.162015,59839.0,59838.0,0.40230978]
[1728595343815,0.162015,59839.0,59838.0,1.90230978]
[1728595344031,0.162015,59839.0,59838.0,0.40230978]
[1728595347970,0.162015,59839.0,59838.0,1.90230978]
[1728595348384,0.162829,59839.0,59838.0,1.90230978]
[1728595349989,0.109122,59839.0,59838.0,1.90230978]
[1728595350201,0.109122,59839.0,59838.0,1.8527153]
[1728595350438,0.109122,59839.0,59838.0,1.90234212]
[1728595353580,0.109122,59839.0,59838.0,1.8527153]
[1728595354118,0.109122,59839.0,59838.0,0.3527153]
[1728595356658,0.109122,59839.0,59838.0,0.42717963]
[1728595357303,0.109122,59839.0,59838.0,0.42517963]
[1728595358416,0.109122,59839.0,59838.0,0.42717963]
[1728595359490,0.109122,59839.0,59838.0,0.425239]
[1728595359718,0.109122,59839.0,59838.0,0.42524178]
[1728595359945,0.109122,59839.0,59838.0,0.40040571]
[1728595360195,0.109122,59839.0,59838.0,0.3507153]
[1728595360650,0.109122,59839.0,59838.0,0.3327153]
[1728595360864,0.109122,59839.0,59838.0,0.3197153]
[1728595361052,0.109122,59839.0,59838.0,0.3417153]
[1728595361286,0.109122,59839.0,59838.0,0.3323433]
[1728595361515,0.109122,59839.0,59838.0,0.3373433]
[1728595361735,0.109122,59839.0,59838.0,0.3293433]
[1728595361942,0.109122,59839.0,59838.0,0.3263433]
[1728595362774,0.109122,59839.0,59838.0,0.3273433]
[1728595363016,0.109122,59839.0,59838.0,0.3293433]
[1728595363201,0.109122,59839.0,59838.0,0.8293433]
[1728595364521,0.109122,59839.0,59838.0,0.8243433]
[1728595366300,0.109122,59839.0,59838.0,0.8263433]
[1728595367181,0.109122,59839.0,59838.0,0.8313433]
[1728595367628,0.109122,59839.0,59838.0,0.8263433]
[1728595367845,0.109122,59839.0,59838.0,0.8293433]
[1728595368720,0.109122,59839.0,59838.0,0.8243433]
[1728595368934,0.109122,59839.0,59838.0,0.8293433]
[1728595369146,0.109122,59839.0,59838.0,0.3293433]
[1728595371737,0.109122,59839.0,59838.0,0.3243433]
[1728595372409,0.109122,59839.0,59838.0,0.3293433]
[1728595372619,0.109122,59839.0,59838.0,0.3243433]
[1728595373035,0.109122,59839.0,59838.0,0.3263433]
[1728595373276,0.110122,59839.0,59838.0,0.3213433]
[1728595373914,0.110122,59839.0,59838.0,0.3263433]
[1728595375050,0.110122,59839.0,59838.0,0.3283433]
[1728595378064,0.109122,59839.0,59838.0,0.3283433]
[1728595378382,0.109122,59839.0,59838.0,0.3313433]
[1728595378518,0.109122,59839.0,59838.0,0.3343433]
[1728595379155,0.109122,59839.0,59838.0,0.3323433]
[1728595382560,0.109122,59839.0,59838.0,0.3343433]
[1728595383237,0.109122,59839.0,59838.0,0.3323433]
[1728595384695,0.109122,59839.0,59838.0,0.38205078]
[1728595385090,0.109122,59839.0,59838.0,0.3273433]
[1728595385958,0.109122,59839.0,59838.0,0.3243433]
[1728595386314,0.109122,59839.0,59838.0,0.3273433]
[1728595387109,0.109122,59839.0,59838.0,0.3243433]
[1728595387520,0.109122,59839.0,59838.0,0.3213433]
[1728595387752,0.109122,59839.0,59838.0,0.3223433]
[1728595388161,0.109122,59839.0,59838.0,0.3213433]
[1728595388588,0.109122,59839.0,59838.0,0.3223433]
[1728595388993,0.109122,59839.0,59838.0,0.3213433]
[1728595389418,0.109122,59839.0,59838.0,0.3223433]
[1728595389666,0.109122,59839.0,59838.0,0.002628]
[1728595389899,0.109122,59839.0,59838.0,0.153034]
[1728595390577,0.109122,59839.0,59838.0,0.152034]
[1728595391339,0.110122,59839.0,59838.0,0.152034]
[1728595391574,0.109122,59839.0,59838.0,0.152034]
[1728595391822,0.110122,59839.0,59838.0,0.152034]
[1728595394332,0.110122,59839.0,59838.0,0.154034]
[1728595395598,0.110122,59839.0,59838.0,0.20376546]
[1728595396609,0.110122,59839.0,59838.0,0.152034]
[1728595399603,0.110122,59839.0,59838.0,0.22665857]
[1728595400287,0.110122,59839.0,59838.0,0.22865857]
[1728595400508,0.110122,59839.0,59838.0,0.39796787]
[1728595401364,0.110122,59839.0,59838.0,0.39798639]
[1728595401992,0.109122,59839.0,59838.0,0.39798639]
[1728595402424,0.110122,59839.0,59838.0,0.39798639]
[1728595403699,0.110122,59839.0,59838.0,0.3233433]
[1728595404598,0.110122,59839.0,59838.0,0.42286742]
[1728595406044,0.110122,59839.0,59838.0,0.42292841]
[1728595408038,0.084614,59839.0,59838.0,0.42292841]
[1728595410116,0.084614,59839.0,59838.0,0.3233433]
[1728595410532,0.001814,59839.0,59838.0,0.3233433]
[1728595410857,0.001814,59839.0,59838.0,0.3283433]
[1728595411100,0.000814,59839.0,59838.0,0.3283433]
[1728595411487,0.000814,59839.0,59838.0,0.3343433]
[1728595414801,0.000814,59839.0,59838.0,0.46143932]
[1728595415915,0.000814,59839.0,59838.0,0.3343433]
[1728595418157,0.000814,59839.0,59838.0,0.28184542]
[1728595418364,0.000814,59839.0,59838.0,0.43225142]
[1728595419463,0.000814,59839.0,59838.0,0.45713546]
[1728595419670,0.000814,59839.0,59838.0,0.4322338]
[1728595420421,0.000814,59839.0,59838.0,0.43223543]
[1728595425221,0.000814,59839.0,59838.0,0.43221878]
[1728595427227,0.000814,59839.0,59838.0,0.93221878]
[1728595427675,0.000814,59839.0,59838.0,0.8327153]
[1728595428107,0.000814,59839.0,59838.0,0.95709465]
[1728595429464,0.000814,59839.0,59838.0,0.95872465]
[1728595429882,0.000814,59839.0,59838.0,0.95872466]
[1728595435634,0.000814,59839.0,59838.0,0.8343453]
[1728595438016,0.000814,59839.0,59838.0,2.3343453]
[1728595438493,0.000814,59839.0,59838.0,0.96144132]
[1728595438693,0.000814,59839.0,59838.0,0.95844132]
[1728595438872,0.000814,59839.0,59838.0,0.95544132]
[1728595439087,0.000814,59839.0,59838.0,0.96644132]
[1728595439522,0.000814,59839.0,59838.0,0.95544132]
[1728595439934,0.000814,59839.0,59838.0,0.96644132]
[1728595440144,0.000814,59839.0,59838.0,1.11569655]
[1728595440999,0.000814,59839.0,59838.0,1.10469655]
[1728595441461,0.000814,59839.0,59838.0,1.11669655]
[1728595442358,0.000814,59839.0,59838.0,1.12869655]
[1728595442810,0.000814,59839.0,59838.0,1.12870014]
[1728595443226,0.000814,59839.0,59838.0,0.97944132]
[1728595444986,0.000814,59839.0,59838.0,0.97744132]
[1728595445210,0.000814,59839.0,59838.0,0.97944132]
[1728595445877,0.000814,59839.0,59838.0,0.8523453]
[1728595454431,0.000814,59839.0,59838.0,1.00162585]
[1728595454638,0.000814,59839.0,59838.0,0.8523453]
[1728595455707,0.079714,59839.0,59838.0,0.8503453]
[1728595456130,0.079714,59839.0,59838.0,0.8523453]
[1728595464506,0.079714,59839.0,59838.0,0.85485208]
[1728595468074,0.05779532,59839.0,59838.0,0.85485208]
[1728595470893,0.20713845,59844.0,59843.0,0.150393]
[1728595471111,0.20713845,59844.0,59843.0,0.36952936]
[1728595471298,0.000815,59847.0,59846.0,0.150385]
[1728595472495,0.000815,59847.0,59846.0,0.153385]
[1728595472728,0.000815,59847.0,59846.0,0.003]
[1728595473568,0.000815,59847.0,59846.0,0.503]
[1728595473775,0.177915,59847.0,59846.0,0.507]
[1728595475345,0.177915,59847.0,59846.0,0.5]
[1728595476840,0.083515,59847.0,59845.0,0.150388]
[1728595477083,0.0944,59846.0,59845.0,0.3196973]
[1728595477984,0.1771,59846.0,59845.0,0.3196973]
[1728595479351,0.000815,59847.0,59845.0,0.1693093]
[1728595479606,0.000815,59847.0,59846.0,0.3196943]
[1728595480814,0.000815,59847.0,59846.0,0.36952867]
[1728595481259,0.000815,59847.0,59846.0,0.37152867]
[1728595481500,0.000815,59847.0,59846.0,0.37452867]
[1728595481731,0.000815,59847.0,59846.0,0.37252867]
[1728595481895,0.000815,59847.0,59846.0,0.37652867]
[1728595482567,0.000815,59847.0,59846.0,0.37352867]
[1728595482937,0.000815,59847.0,59846.0,0.37652867]
[1728595483859,0.000815,59847.0,59846.0,0.40144586]
[1728595485535,0.000815,59847.0,59846.0,0.40144409]
[1728595486725,0.000815,59847.0,59846.0,0.3266943]
[1728595492266,0.000815,59847.0,59846.0,0.3316943]
[1728595492967,0.000815,59847.0,59846.0,0.3266943]
[1728595493224,0.000815,59847.0,59846.0,0.3386943]
[1728595493461,0.000815,59847.0,59846.0,0.3326943]
[1728595493706,0.000815,59847.0,59846.0,0.3336943]
[1728595493939,0.000815,59847.0,59846.0,0.3406943]
[1728595495879,0.000815,59847.0,59846.0,1.8406943]
[1728595499312,0.000815,59847.0,59846.0,1.96506345]
[1728595499967,0.000815,59847.0,59846.0,0.46506345]
[1728595500673,0.000815,59847.0,59846.0,0.3406943]
[1728595500893,0.000815,59847.0,59846.0,0.46308122]
[1728595501114,0.000815,59847.0,59846.0,0.44021179]
[1728595501333,0.000815,59847.0,59846.0,0.44021277]
[1728595501571,0.000815,59847.0,59846.0,0.3406943]
[1728595502005,0.000815,59847.0,59846.0,0.41534211]
[1728595503102,0.000815,59847.0,59846.0,0.4153395]
[1728595509331,0.000815,59847.0,59846.0,0.44022124]
[1728595509754,0.000815,59847.0,59846.0,0.41532163]
[1728595511131,0.000815,59847.0,59846.0,0.41332163]
[1728595511985,0.000815,59847.0,59846.0,0.41532163]
[1728595512791,0.000815,59847.0,59846.0,0.41532327]
[1728595513445,0.000815,59847.0,59846.0,0.91532473]
[1728595514628,0.000815,59847.0,59846.0,0.9153265]
[1728595521308,0.000815,59847.0,59846.0,0.8406943]
[1728595522311,0.000815,59847.0,59846.0,0.91528998]
[1728595523191,0.000815,59847.0,59846.0,0.96501104]
[1728595523396,0.000815,59847.0,59846.0,0.8406943]
[1728595523622,0.000815,59847.0,59846.0,2.3406943]
[1728595524100,0.000815,59847.0,59846.0,2.3266943]
[1728595524307,0.000815,59847.0,59846.0,2.3366943]
[1728595524741,0.000815,59847.0,59846.0,2.3466943]
[1728595525778,0.000815,59847.0,59846.0,0.8466943]
[1728595531330,0.000815,59847.0,59846.0,0.8366943]
[1728595531540,0.000815,59847.0,59846.0,0.8486943]
[1728595532357,0.000815,59847.0,59846.0,0.8386943]
[1728595532567,0.000815,59847.0,59846.0,0.8506943]
[1728595533214,0.000815,59847.0,59846.0,2.3386943]
[1728595533426,0.000815,59847.0,59846.0,2.3506943]
[1728595542257,0.000815,59847.0,59846.0,2.3386943]
[1728595542675,0.000815,59847.0,59846.0,2.3396943]
[1728595543098,0.000815,59847.0,59846.0,2.3526943]
[1728595543528,0.000815,59847.0,59846.0,2.3396943]
[1728595543793,0.000815,59847.0,59846.0,2.3386943]
[1728595544007,0.000815,59847.0,59846.0,2.3506943]
[1728595544435,0.000815,59847.0,59846.0,0.8506943]
[1728595545128,0.000815,59847.0,59846.0,0.97505387]
[1728595546020,0.000815,59847.0,59846.0,0.97505425]
[1728595546485,0.000815,59847.0,59846.0,0.8506943]
[1728595548529,0.000815,59847.0,59846.0,2.3506943]
[1728595568564,0.000815,59847.0,59846.0,2.49997914]
[1728595568800,0.000815,59847.0,59846.0,2.3506943]
[1728595569015,0.000815,59847.0,59846.0,2.49997914]
[1728595569463,0.000815,59847.0,59846.0,2.3506943]
[1728595569668,0.000815,59847.0,59846.0,2.49997914]
[1728595569877,0.000815,59847.0,59846.0,2.3506943]
[1728595571188,0.000815,59847.0,59846.0,2.49997925]
[1728595571654,0.000815,59847.0,59846.0,2.3506943]
[1728595573048,0.000815,59847.0,59846.0,2.49996785]
[1728595573535,0.000815,59847.0,59846.0,2.3506943]
[1728595576424,0.000815,59847.0,59846.0,2.49998185]
[1728595577905,0.000815,59847.0,59846.0,2.3506943]
[1728595578148,0.000815,59847.0,59846.0,2.70280444]
[1728595578601,0.000815,59847.0,59846.0,2.8455668]
[1728595579065,0.000815,59847.0,59846.0,2.8235668]
[1728595579515,0.000815,59847.0,59846.0,2.78375666]
[1728595579725,0.000815,59847.0,59846.0,2.76975666]
[1728595579934,0.000815,59847.0,59846.0,2.78375666]
[1728595580366,0.000815,59847.0,59846.0,2.79775666]
[1728595580844,0.000815,59847.0,59846.0,2.78375666]
[1728595581059,0.000815,59847.0,59846.0,2.79775666]
[1728595581487,0.000815,59847.0,59846.0,2.79975666]
[1728595582164,1e-06,59847.0,59846.0,2.79975666]
[1728595582383,1e-06,59847.0,59846.0,2.85647893]
[1728595582802,0.25094313,59856.0,59855.0,0.450663]
[1728595583021,0.25094313,59856.0,59855.0,0.6224779]
[1728595583245,0.0002,59859.0,59858.0,0.152355]
[1728595583459,0.0002,59859.0,59858.0,0.6026233]
[1728595583667,0.0002,59859.0,59858.0,0.45376032]
[1728595584959,0.0002,59859.0,59858.0,0.46576032]
[1728595585526,0.0002,59859.0,59858.0,0.61452777]
[1728595585738,0.0002,59859.0,59858.0,0.71452777]
[1728595585944,0.0002,59859.0,59858.0,0.56576032]
[1728595586324,0.0002,59859.0,59858.0,0.57776032]
[1728595586547,0.0002,59859.0,59858.0,2.07776032]
[1728595586752,0.001015,59859.0,59858.0,2.22648709]
[1728595586972,0.001015,59859.0,59858.0,2.07776032]
[1728595588417,0.001015,59859.0,59858.0,2.10076032]
[1728595588620,0.001015,59859.0,59858.0,2.19416032]
[1728595589393,0.001015,59859.0,59858.0,2.2099546]
[1728595592617,0.001015,59859.0,59858.0,2.08285858]
[1728595592844,0.001015,59859.0,59858.0,2.2099546]
[1728595608908,0.001015,59859.0,59858.0,2.1165546]
[1728595609551,0.001015,59859.0,59858.0,1.98945858]
[1728595609762,0.001015,59859.0,59858.0,2.16065858]
[1728595610503,0.001015,59859.0,59858.0,2.2877546]
[1728595610958,0.001015,59859.0,59858.0,2.16065858]
[1728595611384,0.09377228,59871.0,59858.0,2.14865858]
[1728595611601,0.06877228,59871.0,59870.0,0.27942102]
[1728595611828,0.06877228,59871.0,59870.0,0.44873032]
[1728595612077,0.0756,59874.0,59873.0,0.150318]
[1728595612330,0.0756,59874.0,59873.0,0.44872332]
[1728595613874,0.0756,59874.0,59873.0,0.45372332]
[1728595615038,0.0756,59874.0,59873.0,0.45872332]
[1728595615746,0.0756,59874.0,59873.0,1.95872332]
[1728595620883,0.1711,59874.0,59873.0,0.3296273]
[1728595622069,0.1711,59874.0,59873.0,0.3246273]
[1728595622295,0.1711,59874.0,59873.0,0.3236273]
[1728595622503,0.1711,59874.0,59873.0,0.3266273]
[1728595622728,0.171915,59874.0,59873.0,0.3286273]
[1728595623410,0.171915,59874.0,59873.0,0.3266273]
[1728595623650,0.171915,59874.0,59873.0,0.37628136]
[1728595624259,0.171915,59874.0,59873.0,0.40126074]
[1728595624441,0.171915,59874.0,59873.0,0.50547834]
[1728595624642,0.171915,59874.0,59873.0,0.55523457]
[1728595624991,0.171915,59874.0,59873.0,0.58011238]
[1728595625219,0.171915,59874.0,59873.0,0.57811238]
[1728595626358,0.171915,59874.0,59873.0,0.578154]
[1728595626558,0.171915,59874.0,59873.0,0.45372332]
[1728595631141,0.171915,59874.0,59873.0,0.45572332]
[1728595631742,0.171915,59874.0,59873.0,0.45372332]
[1728595631978,0.171915,59874.0,59873.0,0.3266273]